[Event "Late-Titled-Tuesday-Blitz-April-16-2024"]
[Site "Chess.com"]
[Date "2024.04.16"]
[Round "4"]
[White "Anton_Demchenko"]
[Black "Statham_01"]
[Result "0-1"]
[WhiteElo "2954"]
[BlackElo "2627"]
[TimeControl "180+1"]
[EndTime "14:39:50 PDT"]
[Termination "Statham_01 won on time"]

1. e4 {[%clk 0:03:00.9]} 1... e5 {[%clk 0:03:00.2]} 2. Nf3 {[%clk 0:03:00.8]}
2... Nf6 {[%clk 0:03:00.8]} 3. Nxe5 {[%clk 0:03:00.5]} 3... d5 {[%clk
0:03:01.1]} 4. Nf3 {[%clk 0:03:01.2]} 4... dxe4 {[%clk 0:03:00.9]} 5. Ne5 {[%clk
0:02:39.1]} 5... Bc5 {[%clk 0:02:56.8]} 6. Nc4 {[%clk 0:02:25.4]} 6... Nc6
{[%clk 0:02:52.1]} 7. Ne3 {[%clk 0:02:14.6]} 7... Ne5 {[%clk 0:02:26.8]} 8. Be2
{[%clk 0:02:12.9]} 8... h5 {[%clk 0:02:26.3]} 9. h3 {[%clk 0:02:09.6]} 9... Be6
{[%clk 0:02:22.2]} 10. Nc3 {[%clk 0:01:57.7]} 10... Qd7 {[%clk 0:02:19]} 11. d3
{[%clk 0:01:47.2]} 11... O-O-O {[%clk 0:02:10.7]} 12. dxe4 {[%clk 0:01:20.5]}
12... Qc6 {[%clk 0:02:03.7]} 13. Bd3 {[%clk 0:01:21]} 13... g5 {[%clk
0:01:49.8]} 14. Qe2 {[%clk 0:01:14.5]} 14... a6 {[%clk 0:01:41.7]} 15. Bd2
{[%clk 0:00:52.1]} 15... h4 {[%clk 0:01:36.4]} 16. O-O {[%clk 0:00:25.8]} 16...
g4 {[%clk 0:01:28.7]} 17. Ncd5 {[%clk 0:00:25.6]} 17... Bxd5 {[%clk 0:00:44.3]}
18. exd5 {[%clk 0:00:25.4]} 18... Qd6 {[%clk 0:00:31.6]} 19. Bf5+ {[%clk
0:00:14.9]} 19... Kb8 {[%clk 0:00:31.1]} 20. Nxg4 {[%clk 0:00:14.8]} 20... Nfxg4
{[%clk 0:00:28.1]} 21. Bxg4 {[%clk 0:00:15.5]} 21... Qxd5 {[%clk 0:00:20.3]} 22.
Bc3 {[%clk 0:00:08.4]} 22... Nxg4 {[%clk 0:00:19.7]} 23. Bxh8 {[%clk 0:00:07.7]}
23... Nxf2 {[%clk 0:00:17.5]} 24. Rxf2 {[%clk 0:00:07.1]} 24... Rxh8 {[%clk
0:00:18.1]} 25. Rf1 {[%clk 0:00:07.2]} 25... Rg8 {[%clk 0:00:17.7]} 26. Kh1
{[%clk 0:00:07.9]} 26... Rg3 {[%clk 0:00:15.8]} 27. Rf3 {[%clk 0:00:07.7]} 27...
Rg7 {[%clk 0:00:11.6]} 28. Rf5 {[%clk 0:00:06.6]} 28... Qd4 {[%clk 0:00:10.2]}
29. Qf3 {[%clk 0:00:06.4]} 29... Bd6 {[%clk 0:00:08.9]} 30. Rxf7 {[%clk
0:00:04.2]} 30... Rg3 {[%clk 0:00:09.6]} 31. Qf2 {[%clk 0:00:04.1]} 31... Qe5
{[%clk 0:00:07.5]} 32. Rf5 {[%clk 0:00:04.3]} 32... Qe4 {[%clk 0:00:05.7]} 33.
Rf3 {[%clk 0:00:04.2]} 33... Rg8 {[%clk 0:00:03.9]} 34. Re3 {[%clk 0:00:04.7]}
34... Qd5 {[%clk 0:00:04.1]} 35. Qe2 {[%clk 0:00:04.2]} 35... Ka7 {[%clk
0:00:03.4]} 36. Re4 {[%clk 0:00:03.7]} 36... Qc6 {[%clk 0:00:03.2]} 37. Qe3+
{[%clk 0:00:03.7]} 37... Bc5 {[%clk 0:00:03.9]} 38. Qf3 {[%clk 0:00:03.8]} 38...
Rg3 {[%clk 0:00:04.3]} 39. Qe2 {[%clk 0:00:04.4]} 39... Bb6 {[%clk 0:00:03.2]}
40. c3 {[%clk 0:00:03.8]} 40... Qg6 {[%clk 0:00:03.5]} 41. Rg4 {[%clk
0:00:03.4]} 41... Qd6 {[%clk 0:00:02.7]} 42. Rxg3 {[%clk 0:00:03.4]} 42... hxg3
{[%clk 0:00:03.6]} 43. Qf3 {[%clk 0:00:03.8]} 43... a5 {[%clk 0:00:03.7]} 44. a3
{[%clk 0:00:03.7]} 44... a4 {[%clk 0:00:04.1]} 45. Qf4 {[%clk 0:00:04.3]} 45...
Qc6 {[%clk 0:00:02.7]} 46. Qxg3 {[%clk 0:00:04.1]} 46... Qb5 {[%clk 0:00:03.4]}
47. Qf3 {[%clk 0:00:04.4]} 47... Qxb2 {[%clk 0:00:03.3]} 48. h4 {[%clk
0:00:03.4]} 48... Qxa3 {[%clk 0:00:03.7]} 49. g3 {[%clk 0:00:02.9]} 49... Qc5
{[%clk 0:00:03.9]} 50. Qf4 {[%clk 0:00:02.9]} 50... Qb5 {[%clk 0:00:03.5]} 51.
Kg2 {[%clk 0:00:02.7]} 51... a3 {[%clk 0:00:03.9]} 52. Qf3 {[%clk 0:00:02.4]}
52... a2 {[%clk 0:00:03.2]} 53. Qd1 {[%clk 0:00:02.7]} 53... Qc6+ {[%clk
0:00:03.4]} 54. Kh3 {[%clk 0:00:02.9]} 54... Qxc3 {[%clk 0:00:03.7]} 55. Qa1
{[%clk 0:00:02.5]} 55... Qc4 {[%clk 0:00:03.1]} 56. Rh1 {[%clk 0:00:02.4]} 56...
Qe6+ {[%clk 0:00:03.6]} 57. Kg2 {[%clk 0:00:02.6]} 57... Qe2+ {[%clk 0:00:04.3]}
58. Kh3 {[%clk 0:00:03.1]} 58... Qe4 {[%clk 0:00:04]} 59. Rh2 {[%clk 0:00:03.1]}
59... Qe6+ {[%clk 0:00:03.4]} 60. Kg2 {[%clk 0:00:03.7]} 60... Qd5+ {[%clk
0:00:03.1]} 61. Kh3 {[%clk 0:00:04.2]} 61... Qf5+ {[%clk 0:00:02.4]} 62. Kg2
{[%clk 0:00:04.4]} 62... Qb1 {[%clk 0:00:02.9]} 63. Qc3 {[%clk 0:00:01.7]} 63...
a1=Q {[%clk 0:00:02.7]} 64. Qxa1+ {[%clk 0:00:02.5]} 64... Qxa1 {[%clk
0:00:03.6]} 65. Kh3 {[%clk 0:00:03.2]} 65... Qf1+ {[%clk 0:00:03.9]} 66. Kg4
{[%clk 0:00:03.4]} 66... Qc4+ {[%clk 0:00:04.6]} 67. Kh3 {[%clk 0:00:03.8]}
67... Qe6+ {[%clk 0:00:05]} 68. Kg2 {[%clk 0:00:03.9]} 68... Bg1 {[%clk
0:00:05.9]} 69. Kxg1 {[%clk 0:00:03.9]} 69... b5 {[%clk 0:00:06.7]} 70. h5
{[%clk 0:00:04.1]} 70... Qh6 {[%clk 0:00:07]} 71. g4 {[%clk 0:00:04.6]} 71... b4
{[%clk 0:00:07]} 72. Kh1 {[%clk 0:00:04.5]} 72... b3 {[%clk 0:00:07]} 73. g5
{[%clk 0:00:05.2]} 73... Qc6+ {[%clk 0:00:07.1]} 74. Kg1 {[%clk 0:00:04.8]}
74... Qc5+ {[%clk 0:00:07.7]} 75. Kh1 {[%clk 0:00:04.8]} 75... Qd5+ {[%clk
0:00:08.1]} 76. Kg1 {[%clk 0:00:05]} 76... Qxg5+ {[%clk 0:00:08]} 77. Kh1 {[%clk
0:00:05.5]} 77... b2 {[%clk 0:00:08.3]} 78. Rxb2 {[%clk 0:00:04.6]} 78... Qc1+
{[%clk 0:00:08.5]} 79. Kg2 {[%clk 0:00:05.4]} 79... Qxb2+ {[%clk 0:00:09.4]} 80.
Kg3 {[%clk 0:00:06.3]} 80... Qh8 {[%clk 0:00:10.3]} 81. Kg4 {[%clk 0:00:07.1]}
81... c6 {[%clk 0:00:10.6]} 82. Kg5 {[%clk 0:00:07.8]} 82... Kb7 {[%clk
0:00:11.1]} 83. h6 {[%clk 0:00:08.4]} 83... Kb6 {[%clk 0:00:11.7]} 84. Kg6
{[%clk 0:00:09.3]} 84... Kb5 {[%clk 0:00:12.3]} 85. h7 {[%clk 0:00:10.2]} 85...
c5 {[%clk 0:00:13]} 86. Kh6 {[%clk 0:00:11]} 86... c4 {[%clk 0:00:13.7]} 87. Kg6
{[%clk 0:00:11.9]} 87... c3 {[%clk 0:00:14.1]} 0-1

[Event "Late-Titled-Tuesday-Blitz-April-16-2024"]
[Site "Chess.com"]
[Date "2024.04.16"]
[Round "5"]
[White "MarcoRiehle"]
[Black "IMGC"]
[Result "0-1"]
[WhiteElo "2734"]
[BlackElo "2480"]
[TimeControl "180+1"]
[EndTime "14:48:55 PDT"]
[Termination "IMGC won by resignation"]

1. e4 {[%clk 0:03:00.9]} 1... b6 {[%clk 0:02:57.4]} 2. d4 {[%clk 0:02:58.8]}
2... Bb7 {[%clk 0:02:57.8]} 3. Bd3 {[%clk 0:02:58.7]} 3... e6 {[%clk 0:02:58.1]}
4. Nf3 {[%clk 0:02:57.9]} 4... c5 {[%clk 0:02:58.4]} 5. c3 {[%clk 0:02:57.1]}
5... Nf6 {[%clk 0:02:56]} 6. Nbd2 {[%clk 0:02:55.2]} 6... d6 {[%clk 0:02:50]} 7.
O-O {[%clk 0:02:53.5]} 7... Nbd7 {[%clk 0:02:46]} 8. Qe2 {[%clk 0:02:53]} 8...
Be7 {[%clk 0:02:41.7]} 9. e5 {[%clk 0:02:51.4]} 9... dxe5 {[%clk 0:02:39.3]} 10.
dxe5 {[%clk 0:02:51]} 10... Nd5 {[%clk 0:02:38.8]} 11. Ne4 {[%clk 0:02:50.6]}
11... Qc7 {[%clk 0:02:38.4]} 12. Bg5 {[%clk 0:02:44.9]} 12... Nxe5 {[%clk
0:02:32.5]} 13. Bxe7 {[%clk 0:02:43.8]} 13... Nxf3+ {[%clk 0:02:21.9]} 14. Qxf3
{[%clk 0:02:41.6]} 14... Qxe7 {[%clk 0:02:22.2]} 15. Rad1 {[%clk 0:02:36.1]}
15... O-O {[%clk 0:02:20.1]} 16. h3 {[%clk 0:02:16.3]} 16... Rad8 {[%clk
0:02:14.7]} 17. a3 {[%clk 0:02:09.4]} 17... f5 {[%clk 0:02:10.2]} 18. Ng3 {[%clk
0:02:04.1]} 18... Nxc3 {[%clk 0:02:07.5]} 19. Qe2 {[%clk 0:01:53.4]} 19... Nxe2+
{[%clk 0:02:07]} 20. Bxe2 {[%clk 0:01:52.5]} 20... f4 {[%clk 0:02:04.1]} 0-1

[Event "Late-Titled-Tuesday-Blitz-April-16-2024"]
[Site "Chess.com"]
[Date "2024.04.16"]
[Round "5"]
[White "nassimzrikem"]
[Black "lluiss"]
[Result "1-0"]
[WhiteElo "2263"]
[BlackElo "2112"]
[TimeControl "180+1"]
[EndTime "14:49:09 PDT"]
[Termination "nassimzrikem won by resignation"]

1. e4 {[%clk 0:02:59.5]} 1... c5 {[%clk 0:02:59.2]} 2. Nf3 {[%clk 0:02:59.5]}
2... d6 {[%clk 0:02:59.7]} 3. Bb5+ {[%clk 0:03:00]} 3... Bd7 {[%clk 0:02:59.1]}
4. Bxd7+ {[%clk 0:03:00.3]} 4... Nxd7 {[%clk 0:03:00]} 5. O-O {[%clk 0:03:00.8]}
5... Ngf6 {[%clk 0:02:59.8]} 6. Re1 {[%clk 0:03:01.5]} 6... e6 {[%clk 0:03:00]}
7. c3 {[%clk 0:03:02.1]} 7... Be7 {[%clk 0:02:59.2]} 8. d4 {[%clk 0:03:02.6]}
8... cxd4 {[%clk 0:02:59.5]} 9. cxd4 {[%clk 0:03:02.8]} 9... d5 {[%clk
0:03:00.1]} 10. e5 {[%clk 0:03:02.2]} 10... Ne4 {[%clk 0:03:00.6]} 11. b3 {[%clk
0:02:47.7]} 11... O-O {[%clk 0:02:56.3]} 12. Ba3 {[%clk 0:02:47.9]} 12... Bxa3
{[%clk 0:02:43.1]} 13. Nxa3 {[%clk 0:02:48.8]} 13... Qa5 {[%clk 0:02:41.8]} 14.
Rxe4 {[%clk 0:02:28.1]} 14... Qc7 {[%clk 0:02:42.7]} 15. Re2 {[%clk 0:02:22.8]}
15... a6 {[%clk 0:02:37.2]} 16. Rc2 {[%clk 0:01:59.4]} 16... Qb6 {[%clk
0:02:22.1]} 17. Rac1 {[%clk 0:01:56.1]} 17... Qa5 {[%clk 0:02:19.1]} 18. Nb1
{[%clk 0:01:51.5]} 18... Rfd8 {[%clk 0:02:17.2]} 19. a3 {[%clk 0:01:48.4]} 19...
Qb6 {[%clk 0:02:14.5]} 20. b4 {[%clk 0:01:47.8]} 20... a5 {[%clk 0:02:14.8]} 21.
Qd2 {[%clk 0:01:40.2]} 1-0

[Event "Late-Titled-Tuesday-Blitz-April-16-2024"]
[Site "Chess.com"]
[Date "2024.04.16"]
[Round "5"]
[White "gmcorrales"]
[Black "ACollins05"]
[Result "1-0"]
[WhiteElo "2930"]
[BlackElo "2513"]
[TimeControl "180+1"]
[EndTime "14:49:40 PDT"]
[Termination "gmcorrales won by checkmate"]

1. e4 {[%clk 0:02:49.8]} 1... a6 {[%clk 0:02:59.3]} 2. d4 {[%clk 0:02:49.2]}
2... b5 {[%clk 0:02:59.3]} 3. f4 {[%clk 0:01:54.8]} 3... Bb7 {[%clk 0:02:59.2]}
4. Bd3 {[%clk 0:01:54]} 4... e6 {[%clk 0:02:59.7]} 5. Nf3 {[%clk 0:01:53.9]}
5... c5 {[%clk 0:03:00]} 6. c3 {[%clk 0:01:53.9]} 6... Nf6 {[%clk 0:03:00.4]} 7.
Qe2 {[%clk 0:01:53.6]} 7... d6 {[%clk 0:02:59.5]} 8. O-O {[%clk 0:01:53.2]} 8...
Be7 {[%clk 0:03:00.1]} 9. Kh1 {[%clk 0:01:48.6]} 9... Nbd7 {[%clk 0:02:59.6]}
10. Be3 {[%clk 0:01:48.7]} 10... O-O {[%clk 0:02:56.9]} 11. Nbd2 {[%clk
0:01:48.2]} 11... Rc8 {[%clk 0:02:55.9]} 12. Rae1 {[%clk 0:01:45.8]} 12... Re8
{[%clk 0:02:52.8]} 13. Ng5 {[%clk 0:01:40.3]} 13... h6 {[%clk 0:02:46.4]} 14.
Nxf7 {[%clk 0:01:40.2]} 14... Kxf7 {[%clk 0:02:44.4]} 15. e5 {[%clk 0:01:40.8]}
15... Nd5 {[%clk 0:02:33.4]} 16. Bh7 {[%clk 0:01:40.9]} 16... g6 {[%clk
0:02:27.2]} 17. f5 {[%clk 0:01:40.3]} 17... exf5 {[%clk 0:02:06.3]} 18. Bxh6
{[%clk 0:01:37.4]} 18... dxe5 {[%clk 0:01:58.1]} 19. Rxf5+ {[%clk 0:01:34.8]}
19... gxf5 {[%clk 0:01:52.6]} 20. Qh5+ {[%clk 0:01:34.4]} 20... Ke6 {[%clk
0:01:53]} 21. dxe5 {[%clk 0:01:24.8]} 21... Rg8 {[%clk 0:01:45.6]} 22. Qxf5#
{[%clk 0:01:23.8]} 1-0

[Event "Late-Titled-Tuesday-Blitz-April-16-2024"]
[Site "Chess.com"]
[Date "2024.04.16"]
[Round "5"]
[White "guillembaches"]
[Black "ArchibaldCerveza29"]
[Result "0-1"]
[WhiteElo "2525"]
[BlackElo "2367"]
[TimeControl "180+1"]
[EndTime "14:49:53 PDT"]
[Termination "ArchibaldCerveza29 won by resignation"]

1. e4 {[%clk 0:03:00.9]} 1... e5 {[%clk 0:02:58.3]} 2. Nf3 {[%clk 0:03:01.2]}
2... Nc6 {[%clk 0:02:58.9]} 3. Nc3 {[%clk 0:03:01.7]} 3... Nf6 {[%clk
0:02:58.7]} 4. d4 {[%clk 0:03:02.3]} 4... exd4 {[%clk 0:02:59.6]} 5. Nxd4 {[%clk
0:03:02.8]} 5... Bb4 {[%clk 0:02:59.9]} 6. Nxc6 {[%clk 0:03:03.4]} 6... bxc6
{[%clk 0:03:00.8]} 7. Bd3 {[%clk 0:03:03.9]} 7... O-O {[%clk 0:03:00.8]} 8. O-O
{[%clk 0:03:03.2]} 8... d5 {[%clk 0:03:01.4]} 9. Bd2 {[%clk 0:03:03.5]} 9... Rb8
{[%clk 0:03:00.5]} 10. Re1 {[%clk 0:03:03.2]} 10... Re8 {[%clk 0:02:59.6]} 11.
a3 {[%clk 0:02:54.8]} 11... Bd6 {[%clk 0:02:55.5]} 12. b4 {[%clk 0:02:50.5]}
12... h6 {[%clk 0:02:38.5]} 13. exd5 {[%clk 0:02:39.7]} 13... cxd5 {[%clk
0:02:39.4]} 14. Rxe8+ {[%clk 0:02:39.1]} 14... Qxe8 {[%clk 0:02:38.9]} 15. Qf3
{[%clk 0:02:31.2]} 15... c6 {[%clk 0:02:37.8]} 16. Bxh6 {[%clk 0:02:20.6]} 16...
Qe5 {[%clk 0:02:37.1]} 17. Bxg7 {[%clk 0:01:56]} 17... Qxh2+ {[%clk 0:02:28.7]}
18. Kf1 {[%clk 0:01:55.8]} 18... Bg4 {[%clk 0:02:16.7]} 0-1

[Event "Late-Titled-Tuesday-Blitz-April-16-2024"]
[Site "Chess.com"]
[Date "2024.04.16"]
[Round "5"]
[White "Narek_Ghimoyan"]
[Black "Allion2017"]
[Result "1-0"]
[WhiteElo "2491"]
[BlackElo "2274"]
[TimeControl "180+1"]
[EndTime "14:50:06 PDT"]
[Termination "Narek_Ghimoyan won by resignation"]

1. d4 {[%clk 0:03:00.9]} 1... d5 {[%clk 0:02:59.2]} 2. c4 {[%clk 0:03:01.3]}
2... c6 {[%clk 0:02:59.2]} 3. Nf3 {[%clk 0:03:01.2]} 3... Nf6 {[%clk 0:02:59.7]}
4. Nc3 {[%clk 0:03:01.7]} 4... dxc4 {[%clk 0:02:59]} 5. a4 {[%clk 0:03:01.2]}
5... Bf5 {[%clk 0:02:58.9]} 6. e3 {[%clk 0:03:01.8]} 6... e6 {[%clk 0:02:59.1]}
7. Bxc4 {[%clk 0:03:02.4]} 7... Bb4 {[%clk 0:02:58]} 8. O-O {[%clk 0:03:03]}
8... O-O {[%clk 0:02:56.9]} 9. Qe2 {[%clk 0:03:03.6]} 9... Nbd7 {[%clk
0:02:54.6]} 10. e4 {[%clk 0:03:02.8]} 10... Bg6 {[%clk 0:02:54.6]} 11. Bd3
{[%clk 0:02:59.2]} 11... Rc8 {[%clk 0:02:40.5]} 12. e5 {[%clk 0:02:59.3]} 12...
Nd5 {[%clk 0:02:39.6]} 13. Nxd5 {[%clk 0:02:58.7]} 13... cxd5 {[%clk 0:02:38.7]}
14. Bf4 {[%clk 0:02:47.2]} 14... a6 {[%clk 0:02:24.6]} 15. h4 {[%clk 0:02:32.4]}
15... f5 {[%clk 0:01:50.1]} 16. exf6 {[%clk 0:02:30.5]} 16... Nxf6 {[%clk
0:01:49.9]} 17. Qxe6+ {[%clk 0:02:29.5]} 17... Kh8 {[%clk 0:01:46.6]} 18. Bxg6
{[%clk 0:02:28.5]} 18... hxg6 {[%clk 0:01:44.8]} 19. Ne5 {[%clk 0:02:29.4]}
19... Kh7 {[%clk 0:01:36.7]} 20. Rac1 {[%clk 0:02:13.6]} 20... Rxc1 {[%clk
0:01:32.7]} 21. Rxc1 {[%clk 0:02:14.5]} 21... Ne4 {[%clk 0:01:30.9]} 22. Qxg6+
{[%clk 0:02:01.7]} 22... Kg8 {[%clk 0:01:27.7]} 23. Qe6+ {[%clk 0:02:01.3]}
23... Kh7 {[%clk 0:01:25.3]} 24. Be3 {[%clk 0:01:53.6]} 24... Qxh4 {[%clk
0:01:17.4]} 25. Rc7 {[%clk 0:01:52.8]} 25... Nxf2 {[%clk 0:01:12.1]} 26. Qg6+
{[%clk 0:01:52.5]} 1-0

[Event "Late-Titled-Tuesday-Blitz-April-16-2024"]
[Site "Chess.com"]
[Date "2024.04.16"]
[Round "5"]
[White "nindjaxx8"]
[Black "vladislavkovalev"]
[Result "0-1"]
[WhiteElo "2670"]
[BlackElo "2864"]
[TimeControl "180+1"]
[EndTime "14:50:15 PDT"]
[Termination "vladislavkovalev won by resignation"]

1. d4 {[%clk 0:02:45.8]} 1... Nf6 {[%clk 0:02:57.5]} 2. c4 {[%clk 0:02:44.3]}
2... e6 {[%clk 0:02:58]} 3. Nc3 {[%clk 0:02:39.6]} 3... Bb4 {[%clk 0:02:58.2]}
4. Qc2 {[%clk 0:02:36.7]} 4... b6 {[%clk 0:02:57]} 5. Nf3 {[%clk 0:02:29.8]}
5... Bb7 {[%clk 0:02:56.5]} 6. Bg5 {[%clk 0:02:26.7]} 6... h6 {[%clk 0:02:56.7]}
7. Bh4 {[%clk 0:02:24.9]} 7... g5 {[%clk 0:02:56]} 8. Bg3 {[%clk 0:02:25.2]}
8... Ne4 {[%clk 0:02:56.7]} 9. e3 {[%clk 0:02:24]} 9... d6 {[%clk 0:02:56.2]}
10. Bd3 {[%clk 0:02:23.5]} 10... f5 {[%clk 0:02:55.1]} 11. Nd2 {[%clk
0:02:19.8]} 11... Bxc3 {[%clk 0:02:55.2]} 12. bxc3 {[%clk 0:02:19.8]} 12... Nxd2
{[%clk 0:02:54.9]} 13. Qxd2 {[%clk 0:02:18.9]} 13... Bxg2 {[%clk 0:02:55]} 14.
Rg1 {[%clk 0:02:19]} 14... Bf3 {[%clk 0:02:53.3]} 15. Be2 {[%clk 0:02:17.2]}
15... Bxe2 {[%clk 0:02:38.6]} 16. Qxe2 {[%clk 0:02:18.1]} 16... Qd7 {[%clk
0:02:39.4]} 17. h4 {[%clk 0:02:10.2]} 17... Nc6 {[%clk 0:02:35.4]} 18. O-O-O
{[%clk 0:01:55.8]} 18... O-O-O {[%clk 0:02:34.4]} 19. c5 {[%clk 0:01:54.5]}
19... Kb7 {[%clk 0:02:31.5]} 20. e4 {[%clk 0:01:50.1]} 20... f4 {[%clk
0:02:29.9]} 21. Bh2 {[%clk 0:01:49.3]} 21... dxc5 {[%clk 0:02:29.9]} 22. d5
{[%clk 0:01:43]} 22... exd5 {[%clk 0:02:28.9]} 23. exd5 {[%clk 0:01:43.9]} 23...
Na5 {[%clk 0:02:23.6]} 24. Qe4 {[%clk 0:01:23.5]} 24... Kb8 {[%clk 0:02:08.1]}
25. f3 {[%clk 0:01:07.5]} 25... Rhe8 {[%clk 0:02:02.3]} 26. Qc2 {[%clk
0:01:05.5]} 26... Nc4 {[%clk 0:01:59.4]} 27. Rde1 {[%clk 0:01:01.5]} 27... Rxe1+
{[%clk 0:01:56.7]} 28. Rxe1 {[%clk 0:01:02.4]} 28... Qxd5 {[%clk 0:01:57]} 29.
hxg5 {[%clk 0:01:02.3]} 29... hxg5 {[%clk 0:01:57.9]} 0-1

[Event "Late-Titled-Tuesday-Blitz-April-16-2024"]
[Site "Chess.com"]
[Date "2024.04.16"]
[Round "5"]
[White "kleber2007"]
[Black "kalxandria"]
[Result "1-0"]
[WhiteElo "2530"]
[BlackElo "2228"]
[TimeControl "180+1"]
[EndTime "14:50:23 PDT"]
[Termination "kleber2007 won by resignation"]

1. Nf3 {[%clk 0:03:00.9]} 1... Nf6 {[%clk 0:02:58.6]} 2. g3 {[%clk 0:03:00.7]}
2... e6 {[%clk 0:02:57.1]} 3. Bg2 {[%clk 0:03:00.9]} 3... d5 {[%clk 0:02:56.7]}
4. O-O {[%clk 0:03:01.1]} 4... Be7 {[%clk 0:02:56.3]} 5. c4 {[%clk 0:03:01.6]}
5... O-O {[%clk 0:02:54.9]} 6. b3 {[%clk 0:03:01.8]} 6... c6 {[%clk 0:02:53.3]}
7. d4 {[%clk 0:03:00.6]} 7... b6 {[%clk 0:02:52.3]} 8. Qc2 {[%clk 0:03:00.4]}
8... Bb7 {[%clk 0:02:51.3]} 9. Nc3 {[%clk 0:03:00.3]} 9... Nbd7 {[%clk
0:02:50.7]} 10. Rd1 {[%clk 0:02:59.9]} 10... Rc8 {[%clk 0:02:48.7]} 11. e4
{[%clk 0:02:59.7]} 11... c5 {[%clk 0:02:42.4]} 12. exd5 {[%clk 0:02:58.2]} 12...
exd5 {[%clk 0:02:41.2]} 13. Bb2 {[%clk 0:02:55.7]} 13... cxd4 {[%clk 0:02:25.4]}
14. Nxd4 {[%clk 0:02:54.7]} 14... dxc4 {[%clk 0:02:25.4]} 15. Bxb7 {[%clk
0:02:53.4]} 15... Rc7 {[%clk 0:02:10.3]} 16. Bg2 {[%clk 0:02:30.8]} 16... Qc8
{[%clk 0:01:51.5]} 17. Ndb5 {[%clk 0:02:18.2]} 17... Rc5 {[%clk 0:01:42.5]} 18.
Ba3 {[%clk 0:02:12]} 18... cxb3 {[%clk 0:01:40.2]} 19. axb3 {[%clk 0:02:09.7]}
19... Re5 {[%clk 0:01:19.7]} 20. Nxa7 {[%clk 0:01:58.9]} 20... Qc7 {[%clk
0:01:11.4]} 21. Bxe7 {[%clk 0:01:45.1]} 21... Rxe7 {[%clk 0:01:09]} 22. Nc6
{[%clk 0:01:45.6]} 22... Re6 {[%clk 0:01:03.8]} 23. Nb5 {[%clk 0:01:37.1]} 23...
Qe5 {[%clk 0:00:58.2]} 24. Nxe5 {[%clk 0:01:36.7]} 1-0

[Event "Late-Titled-Tuesday-Blitz-April-16-2024"]
[Site "Chess.com"]
[Date "2024.04.16"]
[Round "5"]
[White "egnfanclub"]
[Black "vova-79"]
[Result "1-0"]
[WhiteElo "2385"]
[BlackElo "2531"]
[TimeControl "180+1"]
[EndTime "14:50:34 PDT"]
[Termination "egnfanclub won by resignation"]

1. e4 {[%clk 0:02:53.4]} 1... e6 {[%clk 0:02:58]} 2. d4 {[%clk 0:02:52.9]} 2...
d5 {[%clk 0:02:57.7]} 3. Nc3 {[%clk 0:02:53.5]} 3... dxe4 {[%clk 0:02:57.5]} 4.
Nxe4 {[%clk 0:02:53.8]} 4... Nd7 {[%clk 0:02:58.1]} 5. Nf3 {[%clk 0:02:53.6]}
5... Ngf6 {[%clk 0:02:57.7]} 6. Bd3 {[%clk 0:02:53.9]} 6... c5 {[%clk
0:02:57.1]} 7. c3 {[%clk 0:02:51.7]} 7... Nxe4 {[%clk 0:02:56.3]} 8. Bxe4 {[%clk
0:02:51.7]} 8... Nf6 {[%clk 0:02:57]} 9. Bc2 {[%clk 0:02:51]} 9... cxd4 {[%clk
0:02:57.2]} 10. Nxd4 {[%clk 0:02:49.3]} 10... Bc5 {[%clk 0:02:56.1]} 11. O-O
{[%clk 0:02:46.3]} 11... Bxd4 {[%clk 0:02:55.6]} 12. cxd4 {[%clk 0:02:46.3]}
12... Bd7 {[%clk 0:02:55]} 13. Re1 {[%clk 0:02:29.3]} 13... Bc6 {[%clk
0:02:54.7]} 14. Qd3 {[%clk 0:02:06.9]} 14... O-O {[%clk 0:02:42.6]} 15. Qh3
{[%clk 0:01:54.5]} 15... Qxd4 {[%clk 0:02:36.9]} 16. Bg5 {[%clk 0:01:54]} 16...
h6 {[%clk 0:02:11.1]} 17. Bxh6 {[%clk 0:01:32.3]} 17... gxh6 {[%clk 0:02:12]}
18. Qxh6 {[%clk 0:01:30.9]} 18... Qg4 {[%clk 0:02:10.7]} 19. g3 {[%clk
0:01:07.8]} 19... Qg7 {[%clk 0:02:08.8]} 20. Qh4 {[%clk 0:01:03.5]} 20... Rfd8
{[%clk 0:02:09.1]} 21. Re5 {[%clk 0:01:02.2]} 21... Rd5 {[%clk 0:02:08.9]} 22.
Rae1 {[%clk 0:01:01.5]} 22... Rad8 {[%clk 0:02:08.2]} 23. Bb3 {[%clk 0:00:57.6]}
23... Rxe5 {[%clk 0:02:01.1]} 24. Rxe5 {[%clk 0:00:58.5]} 24... Nh7 {[%clk
0:01:33.9]} 25. Qxd8+ {[%clk 0:00:57.4]} 1-0

[Event "Late-Titled-Tuesday-Blitz-April-16-2024"]
[Site "Chess.com"]
[Date "2024.04.16"]
[Round "5"]
[White "pooh2012"]
[Black "MikeSailer"]
[Result "1-0"]
[WhiteElo "2521"]
[BlackElo "2173"]
[TimeControl "180+1"]
[EndTime "14:50:40 PDT"]
[Termination "pooh2012 won by resignation"]

1. d4 {[%clk 0:02:56.5]} 1... d5 {[%clk 0:02:57.3]} 2. c4 {[%clk 0:02:56.5]}
2... c6 {[%clk 0:02:47.7]} 3. Nf3 {[%clk 0:02:55.4]} 3... Nf6 {[%clk 0:02:21.6]}
4. Qb3 {[%clk 0:02:34.3]} 4... a6 {[%clk 0:02:12.3]} 5. Nc3 {[%clk 0:02:28.3]}
5... e6 {[%clk 0:02:01.8]} 6. g3 {[%clk 0:02:23.8]} 6... Be7 {[%clk 0:01:51.3]}
7. Bg2 {[%clk 0:02:21.7]} 7... O-O {[%clk 0:01:48.3]} 8. O-O {[%clk 0:02:20.5]}
8... b5 {[%clk 0:01:39.5]} 9. c5 {[%clk 0:02:06]} 9... Nbd7 {[%clk 0:01:36.6]}
10. a4 {[%clk 0:02:04.6]} 10... Rb8 {[%clk 0:01:24.5]} 11. axb5 {[%clk
0:02:01.7]} 11... axb5 {[%clk 0:01:02]} 12. Bf4 {[%clk 0:01:57.4]} 12... Rb7
{[%clk 0:00:57]} 13. Ra8 {[%clk 0:01:52.9]} 13... Re8 {[%clk 0:00:53.8]} 14. Na2
{[%clk 0:01:37.5]} 14... Nf8 {[%clk 0:00:52.6]} 15. Nb4 {[%clk 0:01:33.5]} 15...
Qd7 {[%clk 0:00:42.1]} 16. Ne5 {[%clk 0:01:29.2]} 1-0